bitfinex/quotes_SOLUSD_20220113
["timestamp","ask_amount","ask_price","bid_price","bid_amount"]
[1642087760083,2.845,154.12,154.03,2.9202]
[1642087761886,18.22744673,154.12,154.01,2.9204]
[1642087763291,27.96294673,154.12,154.01,2.9204]
[1642087763494,1.67244673,154.1,154.01,3.1804]
[1642087763686,18.38748063,154.09,154.01,3.1804]
[1642087764490,18.38748063,154.09,154.01,3.4304]
[1642087764688,1.67244673,154.12,154.01,3.4304]
[1642087765290,1.67244673,154.12,154.02,1.36488013]
[1642087765490,1.67244673,154.13,154.07,2.9193]
[1642087765891,1.67244673,154.13,154.07,3.1793]
[1642087766190,1.67244673,154.13,154.01,9.7325]
[1642087766391,2.595,154.12,154.01,9.7325]
[1642087766598,2.596,154.13,154.04,2.9199]
[1642087766991,2.846,154.13,154.04,2.9199]
[1642087767192,2.596,154.13,154.04,2.9199]
[1642087767393,4.26844673,154.13,153.98,17.4065]
[1642087767692,9.92344673,154.13,153.98,8.9211]
[1642087767895,7.71,154.12,153.98,6.0]
[1642087768093,2.596,154.11,153.95,47.8803]
[1642087768292,9.7383,154.08,153.95,68.9575141]
[1642087768494,9.7383,154.08,153.95,47.8803]
[1642087768495,2.597,154.07,153.95,47.8803]
[1642087768793,2.597,154.07,153.95,50.8019]
[1642087768994,8.847,154.07,153.95,50.8019]
[1642087769196,6.25,154.07,153.95,50.8019]
[1642087769393,19.49714993,154.06,153.95,50.8019]
[1642087769593,23.15014993,154.06,153.95,50.8019]
[1642087769993,23.15014993,154.06,153.95,51.0619]
[1642087770192,17.15014993,154.06,153.96,7.71]
[1642087770394,17.15014993,154.06,153.97,2.9213]
[1642087770593,0.25,154.06,153.97,18.53996277]
[1642087770795,2.7735588,154.02,153.98,7.71]
[1642087770996,1.67244673,154.07,153.99,80.0]
[1642087771400,1.67244673,154.07,154.0,2.9207]
[1642087771598,1.67244673,154.07,154.0,0.26]
[1642087771803,1.67244673,154.07,153.96,7.71]
[1642087771997,20.08618255,154.06,153.96,7.71]
[1642087772398,20.08618255,154.06,153.96,7.97]
[1642087772597,20.33618255,154.06,153.96,7.97]
[1642087773000,20.33618255,154.06,153.96,7.71]
[1642087773200,30.07498255,154.06,153.94,9.5864]
[1642087773399,36.07498255,154.06,153.92,1.85376938]
[1642087773603,2.597,154.05,153.92,1.85376938]
[1642087773999,8.847,154.05,153.91,9.56376938]
[1642087774199,9.7412,154.03,153.91,12.48636938]
[1642087774401,23.29985696,154.02,153.91,12.48636938]
[1642087774600,20.95285696,154.02,153.91,12.48636938]
[1642087775000,26.95285696,154.02,153.91,12.48636938]
[1642087775202,26.95285696,154.02,153.91,31.24966568]
[1642087775399,26.95285696,154.02,153.91,12.48636938]
[1642087775600,26.70285696,154.02,153.91,10.8826]
[1642087775806,26.70285696,154.02,153.91,74.5226]
[1642087776001,26.70285696,154.02,153.91,74.7826]
[1642087776401,20.70285696,154.02,153.91,96.31549241]
[1642087776700,20.70285696,154.02,153.91,94.95061228]
[1642087776904,26.70285696,154.02,153.91,94.95061228]
[1642087777102,20.70285696,154.02,153.91,94.95061228]
[1642087777304,20.70285696,154.02,153.91,96.31549241]
[1642087777502,20.70285696,154.02,153.91,74.2726]
[1642087778104,20.70285696,154.02,153.91,75.63748013]
[1642087778906,20.70285696,154.02,153.91,74.2726]
[1642087779302,20.95285696,154.02,153.91,10.6326]
[1642087779709,20.95285696,154.02,153.89,9.5395]
[1642087779912,2.598,154.01,153.86,1.85376938]
[1642087780207,9.7452,153.97,153.86,1.85376938]
[1642087780408,2.598,153.96,153.86,1.85376938]
[1642087780707,20.57997431,153.95,153.82,1.85376938]
[1642087780911,2.599,153.94,153.82,1.85376938]
[1642087781110,8.849,153.94,153.82,1.85376938]
[1642087781510,7.71,153.93,153.8,1.85376938]
[1642087781709,2.599,153.92,153.8,1.85376938]
[1642087782118,8.849,153.92,153.8,1.85376938]
[1642087782514,9.7495,153.9,153.8,1.85376938]
[1642087782714,17.8279442,153.89,153.8,1.85376938]
[1642087782918,6.25,153.9,153.8,2.11376938]
[1642087783115,2.599,153.92,153.8,0.26]
[1642087783316,2.599,153.93,153.8,7.97]
[1642087783516,2.599,153.96,153.8,13.97]
[1642087783717,1.67244673,153.97,153.81,74.84501091]
[1642087783917,1.67244673,153.97,153.82,7.71]
[1642087784217,1.67244673,153.98,153.84,63.64]
[1642087784416,1.67244673,153.98,153.84,71.35]
[1642087784619,1.67244673,153.98,153.84,77.61]
[1642087784817,1.67244673,153.98,153.88,2.923]
[1642087785017,2.598,153.97,153.88,2.923]
[1642087785418,8.598,153.97,153.88,2.923]
[1642087785624,6.25,153.97,153.89,20.15679069]
[1642087785817,0.25,153.97,153.89,23.07969069]
[1642087786037,79.3426,154.0,153.89,23.33969069]
[1642087786338,79.3426,154.0,153.9,63.64]
[1642087786539,6.0,154.0,153.9,64.15]
[1642087786737,4.27044673,154.02,153.93,2.9221]
[1642087786937,1.67244673,154.02,153.93,2.9221]
[1642087787140,1.67244673,154.02,153.94,63.64]
[1642087787337,1.67244673,154.02,153.93,3.4321]
[1642087787538,1.67244673,154.05,153.93,9.4321]
[1642087788139,20.41921974,154.05,153.93,8.4321]
[1642087788639,20.41921974,154.05,153.94,63.64]
[1642087788841,18.74677301,154.05,153.99,2.9209]
[1642087789039,18.74677301,154.05,153.93,6.0]
[1642087789240,2.597,154.04,153.93,6.0]
[1642087789644,2.597,154.04,153.91,7.71]
[1642087789842,8.844,154.04,153.93,2.9221]
[1642087790041,15.094,154.04,153.93,2.9221]
[1642087790542,9.094,154.04,153.93,2.9221]
[1642087790944,15.094,154.04,153.93,3.1821]
[1642087791244,8.597,154.04,153.93,74.5321]
[1642087791449,1.67244673,154.08,153.93,74.7821]
[1642087791644,1.67244673,154.08,153.93,80.7821]
[1642087791850,7.67244673,154.08,153.93,74.7821]
[1642087792044,7.67244673,154.08,153.93,16.8921]
[1642087792250,18.12882364,154.07,153.93,16.8921]
[1642087792446,2.597,154.06,153.93,74.5321]
[1642087792846,2.847,154.06,153.93,74.5321]
[1642087793046,2.847,154.06,153.93,80.5321]
[1642087793245,2.847,154.06,153.93,74.5321]
[1642087793447,2.847,154.06,153.93,74.7821]
[1642087793646,2.847,154.06,153.93,80.5321]
[1642087793846,2.847,154.06,153.93,74.5321]
[1642087794447,14.241,154.06,153.93,10.6321]
[1642087794648,21.951,154.06,153.93,2.9221]
[1642087795848,22.201,154.06,153.93,2.9221]
[1642087796251,31.9404,154.06,153.93,2.9221]
[1642087796451,31.6904,154.06,153.93,2.9221]
[1642087797050,33.36284673,154.06,153.93,3.1821]
[1642087798051,1.67244673,154.05,153.93,3.1821]
[1642087798255,1.67244673,154.05,153.93,66.8221]
[1642087798459,7.67244673,154.05,153.93,66.8221]
[1642087798953,7.92244673,154.05,153.93,66.8221]
[1642087799153,17.66234673,154.05,153.93,2.9221]
[1642087799356,7.71,154.04,153.91,25.03725503]
[1642087799555,2.597,154.03,153.91,25.03725503]
[1642087799755,89.8613,154.04,153.91,25.03725503]
[1642087799957,87.2643,154.04,153.91,2.9225]
[1642087800355,9.7415,154.03,153.91,66.8125]
[1642087800555,15.9915,154.03,153.91,66.8125]
[1642087800756,15.9915,154.03,153.98,1.0]
[1642087801158,7.71,154.02,153.98,1.0]
[1642087801356,61.0,154.01,153.89,12.7932]
[1642087801556,2.598,154.0,153.89,12.7932]
[1642087801756,2.598,154.0,153.89,76.4332]
[1642087801957,8.848,154.0,153.89,76.4332]
[1642087802156,6.25,154.0,153.9,23.91652902]
[1642087802356,6.25,154.0,153.9,2.9228]
[1642087802557,6.25,154.0,153.89,9.8704]
[1642087802756,19.119,154.0,153.89,9.8704]
[1642087803157,2.598,153.99,153.89,9.8704]
[1642087803455,7.71,153.98,153.85,17.56182601]
[1642087803656,2.598,153.97,153.85,17.56182601]
[1642087803855,2.598,153.97,153.82,11.78386938]
[1642087804056,7.71,153.96,153.82,9.9301]
[1642087804255,2.599,153.95,153.82,9.9301]
[1642087804456,7.71,153.94,153.8,4.77826938]
[1642087804682,2.599,153.93,153.8,4.77826938]
[1642087804882,19.82385229,153.92,153.81,22.43447738]
[1642087805089,33.73585229,153.92,153.81,22.43447738]
[1642087805485,9.7493,153.9,153.8,4.77826938]
[1642087805985,6.25,153.9,153.79,9.6061]
[1642087806186,11.969,153.9,153.76,49.65726938]
[1642087806385,10.31,153.89,153.77,19.9427321]
[1642087806586,13.96,153.89,153.77,19.9427321]
[1642087806885,9.7509,153.88,153.77,19.9427321]
[1642087807087,10.0009,153.88,153.77,19.9427321]
[1642087807690,0.25,153.88,153.77,22.8680321]
[1642087807989,0.25,153.88,153.77,2.9253]
[1642087808187,9.7533,153.84,153.73,47.43606938]
[1642087808387,8.294,153.84,153.73,47.43606938]
[1642087808587,8.544,153.84,153.73,47.43606938]
[1642087808988,8.544,153.84,153.74,19.51931074]
[1642087809188,22.30232884,153.86,153.74,27.22931074]
[1642087809189,2.601,153.86,153.74,27.22931074]
[1642087809387,9.7508,153.88,153.74,37.87331615]
[1642087809591,9.7508,153.88,153.75,1.3638362]
[1642087809788,79.6739,153.89,153.75,63.64]
[1642087809989,39.0,153.88,153.75,10.64400541]
[1642087810188,20.97230789,153.87,153.75,10.89400541]
[1642087810393,82.2739,153.89,153.75,1.8738362]
[1642087810688,173.0299,153.95,153.76,7.71]
[1642087810689,2.6,153.91,153.76,7.71]
[1642087810888,83.0789,153.95,153.76,24.22421293]
[1642087811089,3.42112441,153.96,153.77,1.3638362]
[1642087811289,23.23312229,153.95,153.78,7.71]
[1642087811489,23.23312229,153.95,153.8,0.04]
[1642087811689,1.3353877,153.93,153.82,3.6714752]
[1642087811891,1.3353877,153.93,153.82,3.7414752]
[1642087812088,1.3353877,153.93,153.83,7.71]
[1642087812288,1.3353877,153.93,153.83,9.0738362]
[1642087812488,85.3218,153.99,153.88,2.9232]
[1642087812689,17.42745783,153.98,153.88,2.9232]
[1642087813291,27.17175783,153.98,153.88,2.9232]
[1642087813492,27.17175783,153.98,153.86,2.9236]
[1642087813690,2.598,153.97,153.86,2.9236]
[1642087813890,2.598,153.97,153.86,3.1836]
[1642087814090,2.848,153.97,153.86,3.1836]
[1642087814290,9.7459,153.96,153.86,3.1836]
[1642087814490,21.94317101,153.95,153.86,0.26]
[1642087814889,21.94317101,153.95,153.83,7.75]
[1642087814890,22.19317101,153.95,153.83,7.75]
[1642087815091,24.79217101,153.95,153.83,7.75]
[1642087815291,24.79217101,153.95,153.83,0.04]
[1642087815495,63.64,153.94,153.83,0.04]
[1642087815691,10.309,153.93,153.83,0.04]
[1642087815993,50.20090058,153.92,153.83,0.04]
[1642087816192,10.309,153.91,153.83,0.04]
[1642087816591,9.7498,153.9,153.83,0.04]
[1642087816792,10.309,153.89,153.83,0.04]
[1642087816992,10.559,153.89,153.83,0.04]
[1642087817591,21.58092743,153.88,153.83,0.04]
[1642087817792,10.309,153.87,153.83,0.04]
[1642087817995,18.90098176,153.85,153.83,0.04]
[1642087818291,6.06439994,153.84,153.83,0.04]
[1642087818492,6.31439994,153.84,153.83,0.04]
[1642087819493,86.91439994,153.84,153.83,0.04]
[1642087819693,46.0,153.83,153.69,16.4675]
[1642087819893,2.601,153.82,153.69,16.4675]
[1642087820095,16.95526405,153.81,153.7,1.9508]
[1642087820499,17.20526405,153.81,153.7,1.9508]
[1642087820898,17.20526405,153.81,153.71,3.21085938]
[1642087821097,0.25,153.81,153.71,9.71245938]
[1642087821497,93.3955,153.85,153.71,9.96245938]
[1642087821696,83.3928,153.85,153.71,9.96245938]
[1642087821897,2.601,153.86,153.72,7.71]
[1642087822098,22.49517818,153.88,153.75,1.9498]
[1642087822498,22.49517818,153.88,153.75,2.2098]
[1642087823599,22.49517818,153.88,153.75,6.48946736]
[1642087824198,47.5907,153.9,153.75,6.48946736]
[1642087824199,2.6,153.89,153.75,6.48946736]
[1642087824399,47.5907,153.9,153.75,6.73946736]
[1642087824598,47.5907,153.9,153.76,7.71]
[1642087824797,50.1907,153.9,153.77,1.9496]
[1642087824999,47.5907,153.9,153.77,2.2096]
[1642087825197,22.78970465,153.89,153.77,2.2096]
[1642087825399,2.6,153.88,153.77,1.9496]
[1642087825599,10.31,153.88,153.71,7.71]
[1642087825803,10.56,153.88,153.71,7.71]
[1642087826201,10.56,153.88,153.72,63.64]
[1642087826406,10.56,153.88,153.69,32.58624733]
[1642087826407,1.64999521,153.87,153.69,32.58624733]
[1642087826706,22.59613811,153.85,153.69,32.65624733]
[1642087826902,76.1616,153.84,153.69,32.65624733]
[1642087827203,76.4116,153.84,153.71,1.9505]
[1642087827402,76.4116,153.84,153.73,63.64]
[1642087827601,0.25,153.84,153.73,63.64]
[1642087827803,0.25,153.84,153.73,71.68]
[1642087828202,22.84613811,153.85,153.76,1.9499]
[1642087828603,22.84613811,153.85,153.76,2.2099]
[1642087829102,22.84613811,153.85,153.7,7.71]
[1642087829302,2.6,153.84,153.7,9.6606]
[1642087829503,0.25,153.84,153.7,11.02168368]
[1642087829703,0.25,153.84,153.71,1.36108368]
[1642087829906,0.25,153.84,153.72,17.07363545]
[1642087830504,2.601,153.87,153.75,1.95]
[1642087830707,7.71,153.88,153.75,65.59]
[1642087830932,7.71,153.88,153.75,66.1]
[1642087831306,27.33211686,153.88,153.75,67.93386542]
[1642087831706,27.33211686,153.88,153.75,69.2949491]
[1642087831906,27.58211686,153.88,153.75,69.2949491]
[1642087832108,7.96,153.88,153.75,69.2949491]
[1642087832307,23.1207,153.89,153.75,75.17108368]
[1642087832505,23.1207,153.89,153.75,73.81]
[1642087833306,18.06761001,153.88,153.75,73.81]
[1642087833708,25.7207,153.89,153.75,75.17108368]
[1642087833906,23.1207,153.89,153.75,75.17108368]
[1642087834106,23.3707,153.89,153.75,75.17108368]
[1642087834713,20.42395017,153.88,153.75,73.81]
[1642087834911,20.42395017,153.88,153.75,75.17108368]
[1642087835110,20.67395017,153.88,153.75,75.17108368]
[1642087835309,20.42395017,153.88,153.75,73.81]
[1642087835511,20.42395017,153.88,153.75,9.91]
[1642087835712,26.77195017,153.88,153.75,9.66]
[1642087835912,10.31,153.87,153.75,1.95]
[1642087836113,10.31,153.87,153.71,6.5014]
[1642087836310,35.0902,153.87,153.71,6.5014]
[1642087836512,35.3402,153.87,153.71,6.5014]
[1642087836714,9.7522,153.85,153.71,6.5014]
[1642087836911,18.3889368,153.83,153.72,63.64]
[1642087837112,18.6389368,153.83,153.72,63.64]
[1642087837512,18.6389368,153.83,153.75,1.9504]
[1642087837714,2.6,153.86,153.75,1.9504]
[1642087837914,110.866,153.87,153.75,2.2104]
[1642087838117,2.6,153.86,153.75,2.2104]
[1642087838816,17.39531476,153.85,153.75,2.2104]
[1642087839018,17.64531476,153.85,153.75,1.9504]
[1642087840619,17.64531476,153.85,153.75,1.36108368]
[1642087840620,31.92031476,153.85,153.75,1.36108368]
[1642087840820,9.7534,153.83,153.69,16.4679]
[1642087841021,2.601,153.82,153.69,16.4679]
[1642087841420,18.95949906,153.81,153.69,15.1325123]
[1642087841619,2.601,153.8,153.69,15.1325123]
[1642087841821,21.81049906,153.81,153.69,15.1325123]
[1642087842225,19.20949906,153.81,153.7,1.9507]
[1642087842428,2.601,153.8,153.65,7.71]
[1642087842728,27.4143,153.8,153.65,7.71]
[1642087842928,27.6643,153.8,153.65,7.71]
[1642087843130,91.3043,153.8,153.65,7.71]
[1642087843330,7.71,153.79,153.66,3.71218309]
[1642087843532,18.44579437,153.77,153.67,1.9514]
[1642087843930,2.602,153.76,153.67,1.9514]
[1642087844131,18.69579437,153.77,153.67,1.9514]
[1642087845334,18.44579437,153.77,153.67,1.9514]
[1642087847758,82.08579437,153.77,153.65,9.9937]
[1642087847957,2.602,153.76,153.6,31.1346]
[1642087848156,101.35489521,153.76,153.6,7.71]
[1642087848357,7.71,153.75,153.6,7.71]
[1642087848558,2.602,153.74,153.6,7.71]
[1642087848763,9.7608,153.71,153.6,7.71]
[1642087848960,7.96,153.71,153.59,12.6385]
[1642087849160,2.603,153.7,153.55,9.8268]
[1642087849359,2.603,153.7,153.54,9.2374189]
[1642087849360,7.71,153.69,153.54,9.2374189]
[1642087849560,7.71,153.69,153.49,7.71]
[1642087849561,2.603,153.68,153.49,7.71]
[1642087849761,55.1496,153.67,153.49,7.71]
[1642087849961,22.12610829,153.66,153.5,424.00650396]
[1642087850162,7.71,153.65,153.5,424.00650396]
[1642087850365,31.3743,153.65,153.5,424.00650396]
[1642087850564,31.6243,153.65,153.51,3.70652981]
[1642087850868,31.6243,153.65,153.54,6.2269446]
[1642087851065,0.25,153.65,153.54,6.2269446]
[1642087851269,0.25,153.65,153.54,3.2975446]
[1642087851463,22.37610829,153.66,153.54,3.2975446]
[1642087851865,22.37610829,153.66,153.52,1.36917979]
[1642087852065,37.77410829,153.66,153.54,2.9288]
[1642087852265,2.604,153.65,153.54,66.0688]
[1642087852466,22.37610829,153.66,153.54,66.0688]
[1642087852665,22.37610829,153.66,153.55,1.36917979]
[1642087852866,0.25,153.66,153.56,4.45938853]
[1642087853068,7.96,153.68,153.57,66.5688]
[1642087853268,7.71,153.68,153.57,66.5688]
[1642087853468,7.71,153.68,153.57,67.0788]
[1642087854072,151.9751,153.7,153.57,65.26917979]
[1642087854270,78.822,153.75,153.58,9.7566]
[1642087854271,7.71,153.74,153.58,9.7566]
[1642087854469,78.822,153.75,153.6,63.64]
[1642087854670,78.822,153.75,153.59,9.07917979]
[1642087854870,2.602,153.74,153.59,9.07917979]
[1642087855073,2.602,153.74,153.6,1.36917979]
[1642087855272,21.89847788,153.73,153.61,9.7541]
[1642087855472,0.25,153.73,153.62,63.64]
[1642087855673,0.25,153.73,153.61,9.7541]
[1642087855872,2.602,153.72,153.61,9.7541]
[1642087856074,0.25,153.72,153.61,9.7541]
[1642087856273,10.313,153.71,153.53,23.3647]
[1642087856476,127.0912,153.7,153.53,23.3647]
[1642087856674,30.62274119,153.69,153.55,63.64]
[1642087857072,30.87274119,153.69,153.55,63.64]
[1642087857273,40.63534119,153.69,153.54,20.36292611]
[1642087857574,40.38534119,153.69,153.54,20.36292611]
[1642087857773,30.62274119,153.69,153.54,21.7321059]
[1642087858074,2.603,153.69,153.55,63.64]
[1642087858273,80.9274,153.74,153.57,2.9273]
[1642087858474,80.9274,153.74,153.58,7.71]
[1642087858475,78.3244,153.74,153.58,7.71]
[1642087858675,78.3244,153.74,153.59,63.64]
[1642087858875,22.48248222,153.73,153.59,72.82327476]
[1642087859079,2.603,153.72,153.59,74.45245455]
[1642087859276,2.603,153.72,153.59,73.08327476]
[1642087859475,2.853,153.72,153.59,74.45245455]
[1642087859681,2.853,153.72,153.59,74.70245455]
[1642087859877,2.853,153.72,153.59,77.62985455]
[1642087860177,2.603,153.73,153.59,74.70245455]
[1642087860376,78.3244,153.74,153.59,84.67336792]
[1642087860579,2.603,153.77,153.59,84.67336792]
[1642087860976,25.40387111,153.77,153.6,2.9266]
[1642087861178,22.80087111,153.77,153.62,17.43422611]
[1642087861377,77.4429,153.76,153.62,7.71]
[1642087861579,92.9829,153.76,153.62,7.71]
[1642087861778,92.9829,153.76,153.59,63.64]
[1642087861977,9.7602,153.72,153.59,66.5682]
[1642087862177,2.603,153.71,153.6,1.36917979]
[1642087862376,7.71,153.74,153.6,1.36917979]
[1642087862377,21.45449474,153.7,153.6,1.36917979]
[1642087862576,21.70449474,153.7,153.6,1.36917979]
[1642087862978,21.70449474,153.7,153.6,1.62917979]
[1642087863376,21.45449474,153.7,153.61,1.36917979]
[1642087863576,12.3631,153.73,153.61,4.55707979]
[1642087863776,2.603,153.73,153.61,4.55707979]
[1642087863977,10.312,153.74,153.61,4.55707979]
[1642087864577,17.4111149,153.73,153.61,4.55707979]
[1642087864814,2.602,153.72,153.61,0.26]
[1642087865009,2.852,153.72,153.61,1.36917979]
[1642087865206,2.852,153.72,153.6,3.1885]
[1642087865207,10.562,153.72,153.6,0.26]
[1642087865609,9.7618,153.71,153.59,63.9]
[1642087865808,22.81205594,153.69,153.59,63.64]
[1642087866007,23.06205594,153.69,153.59,63.64]
[1642087866608,23.06205594,153.69,153.59,66.5685]
[1642087867307,23.06205594,153.69,153.59,2.9285]
[1642087867508,23.06205594,153.69,153.55,7.71]
[1642087867709,79.6779,153.68,153.55,7.71]
[1642087867908,86.6949,153.68,153.56,63.64]
[1642087868109,86.9449,153.68,153.56,63.9]
[1642087868307,86.9449,153.68,153.5,83.99482448]
[1642087868308,100.6549,153.68,153.51,18.60277979]
[1642087868508,9.7649,153.66,153.51,18.60277979]
[1642087868708,2.604,153.65,153.51,17.2336]
[1642087868908,2.604,153.66,153.51,17.2336]
[1642087869109,8.604,153.66,153.51,17.2336]
[1642087869310,19.23687925,153.65,153.51,17.2336]
[1642087869511,2.604,153.64,153.51,80.8736]
[1642087869713,10.555,153.64,153.51,7.71]
[1642087870010,10.555,153.64,153.48,1.36917979]
[1642087870011,24.265,153.64,153.48,1.36917979]
[1642087870210,47.988,153.64,153.51,1.36917979]
[1642087870411,47.988,153.64,153.48,1.36917979]
[1642087871012,47.988,153.64,153.48,65.00917979]
[1642087871222,49.8033,153.64,153.48,75.64947979]
[1642087871410,39.787,153.64,153.48,75.64947979]
[1642087872314,39.787,153.64,153.48,12.00947979]
[1642087872713,40.037,153.64,153.48,12.00947979]
[1642087872913,39.787,153.64,153.48,12.00947979]
[1642087873114,39.787,153.64,153.49,63.64]
[1642087873313,39.787,153.64,153.48,10.6403]
[1642087873513,9.7683,153.61,153.48,12.00947979]
[1642087873715,2.605,153.6,153.48,2.9303]
[1642087874113,8.605,153.6,153.48,2.9303]
[1642087874314,8.605,153.6,153.47,9.5798]
[1642087874513,22.53844338,153.59,153.46,2.9309]
[1642087875219,32.30774338,153.59,153.46,2.9309]
[1642087875414,2.605,153.58,153.46,2.9309]
[1642087875714,7.71,153.57,153.42,5.54161503]
[1642087875918,2.605,153.56,153.42,5.54161503]
[1642087876114,7.71,153.55,153.42,5.54161503]
[1642087876314,21.09331162,153.51,153.42,5.54161503]
[1642087876514,30.70231162,153.51,153.42,5.54161503]
[1642087876719,17.319,153.51,153.42,1.503e-05]
[1642087877015,73.2686,153.5,153.42,1.503e-05]
[1642087877218,73.2686,153.5,153.38,3.69444603]
[1642087877617,7.71,153.49,153.38,3.69444603]
[1642087877818,18.04064405,153.48,153.38,3.69444603]
[1642087878020,32.00064405,153.48,153.38,3.69444603]
[1642087878819,32.00064405,153.48,153.36,9.696]
[1642087879119,2.607,153.47,153.36,9.696]
[1642087879320,7.71,153.46,153.36,9.696]
[1642087879524,2.607,153.45,153.36,9.696]
[1642087879724,2.607,153.45,153.26,7.71]
[1642087879725,94.0,153.43,153.26,7.71]
[1642087879920,9.7811,153.41,153.28,2.9344]
[1642087880122,13.138,153.41,153.28,2.9344]
[1642087880322,19.388,153.41,153.29,1.36917979]
[1642087880819,20.02205186,153.4,153.29,1.36917979]
[1642087881020,26.27205186,153.4,153.28,2.9344]
[1642087881223,36.05375186,153.4,153.28,2.9344]
[1642087881422,36.05375186,153.4,153.28,4.30357979]
[1642087881621,26.27205186,153.4,153.27,7.38014436]
[1642087881820,2.608,153.39,153.26,2.9347]
[1642087882022,17.67873177,153.37,153.26,2.9347]
[1642087882224,34.35243177,153.37,153.22,9.83279357]
[1642087882422,2.609,153.36,153.22,9.83279357]
[1642087882624,10.319,153.36,153.2,10.11004463]
[1642087882823,16.569,153.36,153.22,1.36982142]
[1642087883224,16.569,153.36,153.2,0.32624463]
[1642087883450,9.7871,153.32,153.2,0.32624463]
[1642087883626,2.609,153.31,153.2,0.32624463]
[1642087883824,7.71,153.3,153.2,0.32624463]
[1642087884024,2.61,153.29,153.2,0.32624463]
[1642087884224,7.71,153.28,153.2,0.32624463]
[1642087884429,25.20403255,153.27,153.2,0.32624463]
[1642087884627,22.59403255,153.27,153.2,0.32624463]
[1642087884930,28.84403255,153.27,153.2,0.32624463]
[1642087885229,28.59403255,153.27,153.2,0.32624463]
[1642087885428,28.59403255,153.27,153.2,1.69606605]
[1642087885627,6.0,153.27,153.2,1.69606605]
[1642087885828,7.71,153.28,153.2,1.69606605]
[1642087886028,7.71,153.31,153.2,1.69606605]
[1642087886327,1.29677658,168.24,153.2,1.69606605]
[1642087886328,73.0214,153.37,153.2,1.94606605]
[1642087886527,73.0214,153.37,153.21,11.01378605]
[1642087886728,2.609,153.39,153.21,17.72378605]
[1642087886927,54.8947,153.4,153.22,28.29641386]
[1642087886928,16.96767133,153.38,153.22,28.29641386]
[1642087887229,47.1847,153.4,153.23,21.58616383]
[1642087887433,7.71,153.45,153.23,33.5550566]
[1642087887630,6.0,153.4,153.24,23.492014]
[1642087887833,47.3839,153.45,153.26,93.9]
[1642087888029,47.3839,153.45,153.27,7.71]
[1642087888231,22.90265006,153.44,153.3,2.9339]
[1642087888431,22.90265006,153.44,153.32,15.98502861]
[1642087888633,22.90265006,153.44,153.33,7.71]
[1642087888935,22.90265006,153.44,153.33,9.08360104]
[1642087889135,72.9314,153.46,153.34,1.37360104]
[1642087889334,2.607,153.51,153.35,7.71]
[1642087889535,6.0,153.53,153.35,8.22]
[1642087889736,2.607,153.55,153.36,65.01360104]
[1642087890036,17.19404096,153.55,153.38,15.19269067]
[1642087890232,17.19404096,153.55,153.39,7.71]
[1642087890433,17.19404096,153.55,153.39,20.60294265]
[1642087890634,153.4292,153.56,153.39,30.04414265]
[1642087890955,153.4292,153.56,153.4,12.89700441]
[1642087891156,75.5277,153.56,153.41,7.78]
[1642087891359,121.9769,153.57,153.42,63.64]
[1642087891659,2.605,153.56,153.43,7.71]
[1642087892258,8.605,153.56,153.43,7.71]
[1642087892458,17.15979243,153.55,153.43,7.71]
[1642087892659,2.606,153.54,153.43,7.71]
[1642087893657,2.606,153.54,153.44,1.37433342]
[1642087893858,17.15979243,153.55,153.45,2.9306]
[1642087894160,2.606,153.56,153.45,2.9306]
[1642087894759,2.856,153.56,153.45,2.9306]
[1642087894962,0.30080926,153.53,153.34,58.61550184]